[Event "NJSK 2022 Jeugd A"]
[Site "Almelo, Netherlands"]
[Date "2022.05.01"]
[Round "1.6"]
[White "Maters, Arthur"]
[Black "Visser, Berend"]
[Result "1-0"]
[TimeControl "90min/40moves + 30min + 30sec/move"]
[WhiteElo "2048"]
[BlackElo "1763"]

1. e4 {[%clk 01:30:59]} {[%emt 00:00:01]} c5 {[%clk 01:30:59]} {[%emt
00:00:01]} 2. Nf3 {[%clk 01:31:21]} {[%emt 00:00:07]} Nc6 {[%clk 01:31:22]}
{[%emt 00:00:07]} 3. Bb5 {[%clk 01:31:16]} {[%emt 00:00:35]} g6 {[%clk
01:31:44]} {[%emt 00:00:08]} 4. O-O {[%clk 01:31:39]} {[%emt 00:00:07]} Bg7
{[%clk 01:31:33]} {[%emt 00:00:41]} 5. Re1 {[%clk 01:32:00]} {[%emt 00:00:08]}
e5 {[%clk 01:27:57]} {[%emt 00:04:07]} 6. Bxc6 {[%clk 01:29:43]} {[%emt
00:02:47]} dxc6 {[%clk 01:27:58]} {[%emt 00:00:29]} 7. h3 {[%clk 01:29:33]}
{[%emt 00:00:40]} b6 {[%clk 01:23:00]} {[%emt 00:05:29]} 8. d3 {[%clk
01:28:44]} {[%emt 00:01:19]} Qe7 {[%clk 01:16:51]} {[%emt 00:06:39]} 9. a4
{[%clk 01:25:04]} {[%emt 00:04:10]} a5 {[%clk 01:15:42]} {[%emt 00:01:39]} 10.
Be3 {[%clk 01:24:52]} {[%emt 00:00:41]} Nf6 {[%clk 01:12:19]} {[%emt 00:03:54]}
11. Qd2 {[%clk 01:21:16]} {[%emt 00:04:05]} h6 {[%clk 01:10:09]} {[%emt
00:02:40]} 12. Na3 {[%clk 01:15:53]} {[%emt 00:05:54]} Ba6 {[%clk 01:04:38]}
{[%emt 00:06:01]} 13. Qc3 {[%clk 01:11:05]} {[%emt 00:05:17]} Nd7 {[%clk
00:59:45]} {[%emt 00:05:24]} 14. Nc4 {[%clk 01:08:10]} {[%emt 00:03:24]} Bxc4
{[%clk 00:57:18]} {[%emt 00:02:56]} 15. Qxc4 {[%clk 01:05:59]} {[%emt
00:02:41]} Nf8 {[%clk 00:50:12]} {[%emt 00:07:36]} 16. d4 {[%clk 01:00:12]}
{[%emt 00:06:18]} exd4 {[%clk 00:42:12]} {[%emt 00:08:30]} 17. Bxd4 {[%clk
01:00:11]} {[%emt 00:00:31]} Bxd4 {[%clk 00:41:42]} {[%emt 00:00:59]} 18. Nxd4
{[%clk 01:00:29]} {[%emt 00:00:13]} Qc7 {[%clk 00:40:44]} {[%emt 00:01:27]} 19.
Nf5 {[%clk 00:56:14]} {[%emt 00:04:45]} gxf5 {[%clk 00:28:32]} {[%emt
00:12:42]} 20. exf5+ {[%clk 00:56:38]} {[%emt 00:00:06]} Kd8 {[%clk 00:28:39]}
{[%emt 00:00:23]} 21. Qc3 {[%clk 00:57:06]} {[%emt 00:00:01]} Rg8 {[%clk
00:19:31]} {[%emt 00:27:32]} 22. Qf6+ {[%clk 00:55:33]} {[%emt 00:02:03]} Kc8
{[%clk 00:19:55]} {[%emt 00:00:06]} 23. Rad1 {[%clk 00:55:20]} {[%emt
00:00:43]} Nd7 {[%clk 00:17:43]} {[%emt 00:02:42]} 24. Qxf7 {[%clk 00:55:12]}
{[%emt 00:00:38]} Rd8 {[%clk 00:17:49]} {[%emt 00:00:25]} 25. Re7 {[%clk
00:53:43]} {[%emt 00:01:59]} b5 {[%clk 00:12:20]} {[%emt 00:05:59]} 26. Qe6
{[%clk 00:51:55]} {[%emt 00:02:18]} bxa4 {[%clk 00:11:28]} {[%emt 00:01:22]} 27.
Rd6 {[%clk 00:52:13]} {[%emt 00:00:12]} Ra6 {[%clk 00:11:22]} {[%emt 00:00:36]}
28. f6 {[%clk 00:51:35]} {[%emt 00:01:08]} Rb6 {[%clk 00:10:28]} {[%emt
00:01:24]} 29. f7 {[%clk 00:51:11]} {[%emt 00:00:53]} Rxb2 {[%clk 00:10:46]}
{[%emt 00:00:12]} 30. Rexd7 {[%clk 00:51:16]} {[%emt 00:00:25]} Rxd7 {[%clk
00:04:38]} {[%emt 00:06:39]} 31. f8=Q+ {[%clk 00:51:37]} {[%emt 00:00:09]} Kb7
{[%clk 00:04:51]} {[%emt 00:00:17]} 32. Qxd7 {[%clk 00:51:54]} {[%emt
00:00:12]} 1-0

[Event "NJSK 2022 Jeugd A"]
[Site "Almelo, Netherlands"]
[Date "2022.05.01"]
[Round "1.7"]
[White "Verheul, Job"]
[Black "Klaren, Duncan"]
[Result "0-1"]
[TimeControl "90min/40moves + 30min + 30sec/move"]
[WhiteElo "1707"]
[BlackElo "1916"]

1. e4 {[%clk 01:30:58]} c5 {[%clk 01:30:53]} {[%emt 00:00:08]} 2. Nf3 {[%clk
01:31:22]} {[%emt 00:00:06]} d6 {[%clk 01:31:14]} {[%emt 00:00:08]} 3. Bb5+
{[%clk 01:31:45]} {[%emt 00:00:07]} Nd7 {[%clk 01:31:31]} {[%emt 00:00:13]} 4.
d4 {[%clk 01:32:06]} {[%emt 00:00:10]} cxd4 {[%clk 01:31:51]} {[%emt 00:00:11]}
5. Qxd4 {[%clk 01:32:28]} {[%emt 00:00:08]} a6 {[%clk 01:32:09]} {[%emt
00:00:12]} 6. Bxd7+ {[%clk 01:32:45]} {[%emt 00:00:13]} Bxd7 {[%clk 01:32:25]}
{[%emt 00:00:13]} 7. c4 {[%clk 01:33:02]} {[%emt 00:00:14]} Nf6 {[%clk
01:32:27]} {[%emt 00:00:28]} 8. Bg5 {[%clk 01:32:21]} {[%emt 00:01:11]} e6
{[%clk 01:32:22]} {[%emt 00:00:36]} 9. Nc3 {[%clk 01:32:11]} {[%emt 00:00:40]}
Be7 {[%clk 01:32:38]} {[%emt 00:00:13]} 10. O-O {[%clk 01:32:26]} {[%emt
00:00:16]} O-O {[%clk 01:32:37]} {[%emt 00:00:31]} 11. Rfd1 {[%clk 01:31:50]}
{[%emt 00:01:06]} Bc6 {[%clk 01:32:28]} {[%emt 00:00:39]} 12. Rac1 {[%clk
01:30:35]} {[%emt 00:01:44]} h6 {[%clk 01:30:39]} {[%emt 00:02:20]} 13. Bh4
{[%clk 01:27:02]} {[%emt 00:04:03]} Rc8 {[%clk 01:23:26]} {[%emt 00:07:43]} 14.
a4 {[%clk 01:14:04]} {[%emt 00:13:27]} Qa5 {[%clk 01:20:09]} {[%emt 00:03:47]}
15. b3 {[%clk 01:11:34]} {[%emt 00:03:00]} Rfd8 {[%clk 01:18:55]} {[%emt
00:01:44]} 16. Qe3 {[%clk 01:05:40]} {[%emt 00:06:24]} Qh5 {[%clk 01:08:47]}
{[%emt 00:10:38]} 17. Bg3 {[%clk 00:47:40]} {[%emt 00:18:31]} Qg6 {[%clk
01:03:57]} {[%emt 00:05:20]} 18. Nd5 {[%clk 00:36:41]} {[%emt 00:11:29]} exd5
{[%clk 00:39:56]} {[%emt 00:42:29]} 19. exd5 {[%clk 00:36:37]} {[%emt
00:00:34]} Bxd5 {[%clk 00:36:28]} {[%emt 00:03:57]} 20. cxd5 {[%clk 00:33:17]}
{[%emt 00:03:50]} Rxc1 {[%clk 00:35:55]} {[%emt 00:01:04]} 21. Qxc1 {[%clk
00:33:41]} {[%emt 00:00:07]} Ne4 {[%clk 00:34:54]} {[%emt 00:01:31]} 22. Qc7
{[%clk 00:29:11]} {[%emt 00:05:00]} Bf6 {[%clk 00:31:28]} {[%emt 00:03:56]} 23.
Qxb7 {[%clk 00:22:15]} {[%emt 00:07:26]} Nc3 {[%clk 00:29:02]} {[%emt
00:02:55]} 24. Re1 {[%clk 00:21:13]} {[%emt 00:01:32]} Qd3 {[%clk 00:28:58]}
{[%emt 00:00:34]} 25. Qc6 {[%clk 00:14:56]} {[%emt 00:06:46]} Qxd5 {[%clk
00:27:10]} {[%emt 00:02:18]} 26. Qxd5 {[%clk 00:14:42]} {[%emt 00:00:44]} Nxd5
{[%clk 00:27:34]} {[%emt 00:00:06]} 27. Rd1 {[%clk 00:14:54]} {[%emt 00:00:19]}
Nc3 {[%clk 00:27:53]} {[%emt 00:00:11]} 28. Rd2 {[%clk 00:11:44]} {[%emt
00:03:39]} Ne4 {[%clk 00:24:52]} {[%emt 00:03:31]} 29. Re2 {[%clk 00:07:32]}
{[%emt 00:04:42]} d5 {[%clk 00:24:57]} {[%emt 00:00:25]} 30. Be5 {[%clk
00:07:03]} {[%emt 00:00:58]} Be7 {[%clk 00:23:58]} {[%emt 00:01:30]} 31. g3
{[%clk 00:05:48]} {[%emt 00:01:45]} f6 {[%clk 00:21:13]} {[%emt 00:03:15]} 32.
Bd4 {[%clk 00:06:03]} {[%emt 00:00:15]} Kf7 {[%clk 00:21:27]} {[%emt 00:00:16]}
33. Rc2 {[%clk 00:05:56]} {[%emt 00:00:37]} Rb8 {[%clk 00:21:10]} {[%emt
00:00:47]} 34. Rb2 {[%clk 00:03:00]} {[%emt 00:03:26]} Rb4 {[%clk 00:19:54]}
{[%emt 00:01:46]} 35. Kf1 {[%clk 00:02:38]} {[%emt 00:00:52]} g5 {[%clk
00:16:31]} {[%emt 00:03:53]} 36. g4 {[%clk 00:02:30]} {[%emt 00:00:38]} Bc5
{[%clk 00:16:51]} {[%emt 00:00:10]} 37. Bxc5 {[%clk 00:01:10]} {[%emt
00:01:50]} Nxc5 {[%clk 00:17:15]} {[%emt 00:00:05]} 38. Rd2 {[%clk 00:00:50]}
{[%emt 00:00:50]} Ke6 {[%clk 00:16:57]} {[%emt 00:00:48]} 39. Nd4+ {[%clk
00:01:08]} {[%emt 00:00:12]} Kd6 {[%clk 00:16:46]} {[%emt 00:00:41]} 40. Nf5+
{[%clk 00:01:06]} {[%emt 00:00:32]} Ke5 {[%clk 00:16:22]} {[%emt 00:00:53]} 41.
Ne7 {[%clk 00:20:32]} {[%emt 00:11:05]} Nxb3 {[%clk 00:39:19]} {[%emt
00:07:34]} 42. Nc6+ {[%clk 00:17:33]} {[%emt 00:03:29]} Kd6 {[%clk 00:39:26]}
{[%emt 00:00:23]} 43. Nxb4 {[%clk 00:17:54]} {[%emt 00:00:09]} Nxd2+ {[%clk
00:39:51]} {[%emt 00:00:05]} 44. Ke2 {[%clk 00:17:38]} {[%emt 00:00:45]} a5
{[%clk 00:40:12]} {[%emt 00:00:09]} 45. Nc2 {[%clk 00:08:24]} {[%emt 00:09:45]}
Ne4 {[%clk 00:37:36]} {[%emt 00:03:05]} 46. Nd4 {[%clk 00:08:05]} {[%emt
00:00:48]} Nc3+ {[%clk 00:37:49]} {[%emt 00:00:18]} 47. Kd2 {[%clk 00:07:59]}
{[%emt 00:00:36]} Nxa4 {[%clk 00:37:24]} {[%emt 00:00:55]} 48. Nf5+ {[%clk
00:06:45]} {[%emt 00:01:44]} Kc5 {[%clk 00:36:49]} {[%emt 00:01:06]} 49. Nxh6
{[%clk 00:07:06]} {[%emt 00:00:09]} Kc4 {[%clk 00:36:40]} {[%emt 00:00:39]} 50.
Ng8 {[%clk 00:06:56]} {[%emt 00:00:41]} Nc5 {[%clk 00:37:01]} {[%emt 00:00:09]}
51. f4 {[%clk 00:05:20]} {[%emt 00:02:05]} Ne4+ {[%clk 00:36:29]} {[%emt
00:01:02]} 52. Kc1 {[%clk 00:04:41]} {[%emt 00:01:12]} gxf4 {[%clk 00:36:06]}
{[%emt 00:00:50]} 53. h4 {[%clk 00:04:36]} {[%emt 00:00:36]} f3 {[%clk
00:36:17]} {[%emt 00:00:19]} 54. Kd1 {[%clk 00:04:21]} {[%emt 00:00:44]} Kd3
{[%clk 00:36:33]} {[%emt 00:00:14]} 0-1

[Event "NJSK 2022 Jeugd A"]
[Site "Almelo, Netherlands"]
[Date "2022.05.02"]
[Round "2.1"]
[White "Roebers, Eline"]
[Black "Maters, Arthur"]
[Result "1/2-1/2"]
[TimeControl "90min/40moves + 30min + 30sec/move"]
[WhiteElo "2369"]
[BlackElo "2048"]

1. e4 {[%clk 01:30:30]} {[%emt 00:47:45]} c5 {[%clk 01:30:56]} {[%emt
00:00:18]} 2. Nf3 {[%clk 01:31:22]} {[%emt 00:00:03]} d6 {[%clk 01:31:22]}
{[%emt 00:00:04]} 3. d4 {[%clk 01:31:48]} {[%emt 00:00:04]} cxd4 {[%clk
01:31:48]} {[%emt 00:00:04]} 4. Nxd4 {[%clk 01:32:15]} {[%emt 00:00:04]} Nf6
{[%clk 01:32:13]} {[%emt 00:00:06]} 5. Nc3 {[%clk 01:32:42]} {[%emt 00:00:03]}
a6 {[%clk 01:32:38]} {[%emt 00:00:05]} 6. Bg5 {[%clk 01:33:09]} {[%emt
00:00:03]} e6 {[%clk 01:33:02]} {[%emt 00:00:05]} 7. f4 {[%clk 01:33:36]}
{[%emt 00:00:02]} Be7 {[%clk 01:33:28]} {[%emt 00:00:05]} 8. Qf3 {[%clk
01:34:01]} {[%emt 00:00:05]} Qc7 {[%clk 01:33:54]} {[%emt 00:00:05]} 9. O-O-O
{[%clk 01:34:27]} {[%emt 00:00:04]} Nbd7 {[%clk 01:34:19]} {[%emt 00:00:05]} 10.
g4 {[%clk 01:34:48]} {[%emt 00:00:09]} b5 {[%clk 01:34:41]} {[%emt 00:00:09]}
11. Bxf6 {[%clk 01:34:42]} {[%emt 00:00:35]} Nxf6 {[%clk 01:35:06]} {[%emt
00:00:05]} 12. g5 {[%clk 01:35:01]} {[%emt 00:00:11]} Nd7 {[%clk 01:35:33]}
{[%emt 00:00:03]} 13. f5 {[%clk 01:35:04]} {[%emt 00:00:27]} O-O {[%clk
01:35:57]} {[%emt 00:00:06]} 14. fxe6 {[%clk 01:17:01]} {[%emt 00:18:32]} fxe6
{[%clk 01:36:21]} {[%emt 00:00:06]} 15. Nxe6 {[%clk 01:08:59]} {[%emt
00:08:33]} Rxf3 {[%clk 01:36:46]} {[%emt 00:00:05]} 16. Nxc7 {[%clk 01:09:26]}
{[%emt 00:00:03]} Ra7 {[%clk 01:37:10]} {[%emt 00:00:07]} 17. Ne8 {[%clk
01:05:10]} {[%emt 00:04:46]} Ne5 {[%clk 01:37:35]} {[%emt 00:00:04]} 18. Nxd6
{[%clk 01:01:33]} {[%emt 00:04:07]} Bg4 {[%clk 01:38:02]} {[%emt 00:00:04]} 19.
h3 {[%clk 00:49:02]} {[%emt 00:13:00]} Rxc3 {[%clk 01:33:17]} {[%emt 00:05:15]}
20. hxg4 {[%clk 00:47:43]} {[%emt 00:01:49]} Rc6 {[%clk 01:33:13]} {[%emt
00:00:34]} 21. Nf5 {[%clk 00:47:22]} {[%emt 00:00:51]} Bxg5+ {[%clk 01:33:36]}
{[%emt 00:00:07]} 22. Kb1 {[%clk 00:47:50]} {[%emt 00:00:02]} Nxg4 {[%clk
01:33:40]} {[%emt 00:00:27]} 23. Rg1 {[%clk 00:38:33]} {[%emt 00:09:46]} Ne3
{[%clk 01:33:45]} {[%emt 00:00:25]} 24. Rd3 {[%clk 00:31:33]} {[%emt 00:07:29]}
Nxf5 {[%clk 01:25:13]} {[%emt 00:09:03]} 25. exf5 {[%clk 00:30:08]} {[%emt
00:01:54]} Bf6 {[%clk 01:23:43]} {[%emt 00:02:01]} 26. Rh1 {[%clk 00:26:37]}
{[%emt 00:04:02]} Rac7 {[%clk 01:15:00]} {[%emt 00:09:13]} 27. c3 {[%clk
00:25:01]} {[%emt 00:02:05]} Rc5 {[%clk 01:07:52]} {[%emt 00:07:38]} 28. Rf3
{[%clk 00:16:30]} {[%emt 00:09:01]} Re7 {[%clk 00:49:14]} {[%emt 00:19:08]} 29.
Bd3 {[%clk 00:16:40]} {[%emt 00:00:20]} h6 {[%clk 00:44:34]} {[%emt 00:05:10]}
30. Rf4 {[%clk 00:13:48]} {[%emt 00:03:21]} Kf8 {[%clk 00:38:42]} {[%emt
00:06:23]} 31. a4 {[%clk 00:10:29]} {[%emt 00:03:49]} bxa4 {[%clk 00:34:17]}
{[%emt 00:04:56]} 32. Rxa4 {[%clk 00:10:27]} {[%emt 00:00:31]} a5 {[%clk
00:34:34]} {[%emt 00:00:13]} 33. Kc2 {[%clk 00:10:01]} {[%emt 00:00:55]} Re3
{[%clk 00:34:25]} {[%emt 00:00:40]} 34. Re4 {[%clk 00:05:50]} {[%emt 00:04:41]}
Rxe4 {[%clk 00:33:50]} {[%emt 00:01:05]} 35. Bxe4 {[%clk 00:06:17]} {[%emt
00:00:04]} Ke7 {[%clk 00:33:18]} {[%emt 00:01:02]} 1/2-1/2

[Event "NJSK 2022 Jeugd A"]
[Site "Almelo, Netherlands"]
[Date "2022.05.02"]
[Round "2.2"]
[White "Albers, Sasa"]
[Black "Elgersma, Onno"]
[Result "1/2-1/2"]
[TimeControl "90min/40moves + 30min + 30sec/move"]
[WhiteElo "2117"]
[BlackElo "2303"]

1. e4 {[%clk 01:30:57]} {[%emt 00:00:03]} c6 {[%clk 01:30:56]} {[%emt
00:00:04]} 2. Nf3 {[%clk 01:31:23]} {[%emt 00:00:04]} d5 {[%clk 01:31:22]}
{[%emt 00:00:04]} 3. Nc3 {[%clk 01:31:48]} {[%emt 00:00:05]} dxe4 {[%clk
01:31:48]} {[%emt 00:00:04]} 4. Nxe4 {[%clk 01:32:12]} {[%emt 00:00:07]} Nf6
{[%clk 01:32:15]} {[%emt 00:00:03]} 5. Qe2 {[%clk 01:32:15]} {[%emt 00:00:27]}
Na6 {[%clk 01:32:41]} {[%emt 00:00:04]} 6. Nxf6+ {[%clk 01:26:45]} {[%emt
00:06:00]} gxf6 {[%clk 01:32:47]} {[%emt 00:00:24]} 7. g3 {[%clk 01:24:05]}
{[%emt 00:03:11]} Qd5 {[%clk 01:27:44]} {[%emt 00:05:32]} 8. Bg2 {[%clk
01:20:08]} {[%emt 00:04:26]} Nb4 {[%clk 01:27:51]} {[%emt 00:00:23]} 9. d3
{[%clk 01:18:27]} {[%emt 00:02:12]} Bg4 {[%clk 01:28:06]} {[%emt 00:00:15]} 10.
Kd1 {[%clk 00:55:34]} {[%emt 00:23:23]} e5 {[%clk 01:26:49]} {[%emt 00:01:47]}
11. h3 {[%clk 00:53:49]} {[%emt 00:02:15]} Bh5 {[%clk 01:25:04]} {[%emt
00:02:14]} 12. g4 {[%clk 00:53:27]} {[%emt 00:00:53]} Bg6 {[%clk 01:25:25]}
{[%emt 00:00:09]} 13. Nh4 {[%clk 00:50:45]} {[%emt 00:03:12]} Qe6 {[%clk
01:18:00]} {[%emt 00:07:55]} 14. f4 {[%clk 00:42:53]} {[%emt 00:08:22]} exf4
{[%clk 01:14:12]} {[%emt 00:04:18]} 15. Re1 {[%clk 00:38:56]} {[%emt 00:04:26]}
Qxe2+ {[%clk 01:07:56]} {[%emt 00:06:46]} 16. Rxe2+ {[%clk 00:39:19]} {[%emt
00:00:07]} Kd7 {[%clk 01:08:19]} {[%emt 00:00:08]} 17. Bxf4 {[%clk 00:39:20]}
{[%emt 00:00:29]} Nd5 {[%clk 01:07:15]} {[%emt 00:01:34]} 18. Bxd5 {[%clk
00:37:42]} {[%emt 00:02:07]} cxd5 {[%clk 01:07:40]} {[%emt 00:00:05]} 19. Kd2
{[%clk 00:37:00]} {[%emt 00:01:12]} h5 {[%clk 01:06:09]} {[%emt 00:02:02]} 20.
g5 {[%clk 00:34:25]} {[%emt 00:03:05]} Bg7 {[%clk 00:39:38]} {[%emt 00:27:01]}
21. Rg1 {[%clk 00:28:24]} {[%emt 00:06:30]} Rhg8 {[%clk 00:32:17]} {[%emt
00:07:52]} 22. Reg2 {[%clk 00:20:15]} {[%emt 00:08:39]} f5 {[%clk 00:29:10]}
{[%emt 00:03:37]} 23. c3 {[%clk 00:18:17]} {[%emt 00:02:27]} Rge8 {[%clk
00:26:49]} {[%emt 00:02:51]} 24. Re1 {[%clk 00:18:39]} {[%emt 00:00:09]} Rxe1
{[%clk 00:23:56]} {[%emt 00:03:23]} 25. Kxe1 {[%clk 00:19:07]} {[%emt
00:00:01]} Re8+ {[%clk 00:18:15]} {[%emt 00:06:11]} 26. Re2 {[%clk 00:19:26]}
{[%emt 00:00:11]} Re6 {[%clk 00:18:03]} {[%emt 00:00:42]} 27. Rxe6 {[%clk
00:18:01]} {[%emt 00:01:55]} Kxe6 {[%clk 00:18:29]} {[%emt 00:00:04]} 28. Ke2
{[%clk 00:11:53]} {[%emt 00:06:38]} a6 {[%clk 00:17:03]} {[%emt 00:01:57]} 29.
Be3 {[%clk 00:08:28]} {[%emt 00:03:55]} Be5 {[%clk 00:15:21]} {[%emt 00:02:12]}
30. Ng2 {[%clk 00:07:22]} {[%emt 00:01:36]} b5 {[%clk 00:09:40]} {[%emt
00:06:12]} 31. Nf4+ {[%clk 00:06:03]} {[%emt 00:01:48]} Bxf4 {[%clk 00:09:29]}
{[%emt 00:00:40]} 32. Bxf4 {[%clk 00:06:26]} {[%emt 00:00:06]} h4 {[%clk
00:07:24]} {[%emt 00:02:37]} 33. Ke3 {[%clk 00:06:39]} {[%emt 00:00:17]} Bh5
{[%clk 00:07:00]} {[%emt 00:00:54]} 34. Bh2 {[%clk 00:05:51]} {[%emt 00:01:18]}
Bg6 {[%clk 00:06:50]} {[%emt 00:00:40]} 35. Bf4 {[%clk 00:02:00]} {[%emt
00:04:20]} Bh5 {[%clk 00:07:17]} {[%emt 00:00:04]} 36. Bc7 {[%clk 00:01:39]}
{[%emt 00:00:51]} Bg6 {[%clk 00:07:30]} {[%emt 00:00:17]} 37. Bd8 {[%clk
00:01:03]} {[%emt 00:01:05]} f4+ {[%clk 00:07:11]} {[%emt 00:00:49]} 38. Kxf4
{[%clk 00:01:14]} {[%emt 00:00:19]} Bf5 {[%clk 00:06:44]} {[%emt 00:00:58]} 39.
g6 {[%clk 00:00:56]} {[%emt 00:00:47]} fxg6 {[%clk 00:06:52]} {[%emt 00:00:22]}
40. Bxh4 {[%clk 00:01:18]} {[%emt 00:00:08]} Bxd3 {[%clk 00:06:46]} {[%emt
00:00:36]} 41. Bf2 {[%clk 00:01:26]} {[%emt 00:00:22]} 1/2-1/2

[Event "NJSK 2022 Jeugd A"]
[Site "Almelo, Netherlands"]
[Date "2022.05.02"]
[Round "2.3"]
[White "Pham, Khoi"]
[Black "Hooijmans, Max"]
[Result "1-0"]
[TimeControl "90min/40moves + 30min + 30sec/move"]
[WhiteElo "2291"]
[BlackElo "1420"]

1. e4 {[%clk 01:30:59]} e5 {[%clk 01:30:55]} {[%emt 00:00:05]} 2. Nf3 {[%clk
01:31:26]} {[%emt 00:00:04]} Nc6 {[%clk 01:31:17]} {[%emt 00:00:07]} 3. Bb5
{[%clk 01:31:54]} {[%emt 00:00:03]} Bc5 {[%clk 01:31:26]} {[%emt 00:00:21]} 4.
c3 {[%clk 01:32:18]} {[%emt 00:00:06]} d6 {[%clk 01:31:25]} {[%emt 00:00:31]} 5.
d4 {[%clk 01:32:42]} {[%emt 00:00:05]} exd4 {[%clk 01:31:48]} {[%emt 00:00:06]}
6. cxd4 {[%clk 01:33:08]} {[%emt 00:00:05]} Bb4+ {[%clk 01:32:12]} {[%emt
00:00:06]} 7. Kf1 {[%clk 01:33:34]} {[%emt 00:00:04]} a6 {[%clk 01:29:21]}
{[%emt 00:03:20]} 8. Bxc6+ {[%clk 01:33:57]} {[%emt 00:00:09]} bxc6 {[%clk
01:29:43]} {[%emt 00:00:07]} 9. Qa4 {[%clk 01:34:23]} {[%emt 00:00:04]} Rb8
{[%clk 01:29:25]} {[%emt 00:00:48]} 10. a3 {[%clk 01:33:46]} {[%emt 00:01:07]}
Bd7 {[%clk 01:28:04]} {[%emt 00:01:51]} 11. axb4 {[%clk 01:33:45]} {[%emt
00:00:32]} c5 {[%clk 01:28:18]} {[%emt 00:00:16]} 12. Qc2 {[%clk 01:33:10]}
{[%emt 00:01:04]} Rxb4 {[%clk 01:27:21]} {[%emt 00:01:28]} 13. Bd2 {[%clk
01:29:09]} {[%emt 00:04:31]} Rc4 {[%clk 01:25:37]} {[%emt 00:02:14]} 14. Bc3
{[%clk 01:26:33]} {[%emt 00:03:06]} cxd4 {[%clk 01:22:17]} {[%emt 00:03:49]} 15.
Nxd4 {[%clk 01:26:32]} {[%emt 00:00:31]} Nf6 {[%clk 01:18:04]} {[%emt
00:04:44]} 16. Nd2 {[%clk 01:24:15]} {[%emt 00:02:46]} Rc5 {[%clk 01:17:25]}
{[%emt 00:01:09]} 17. Rxa6 {[%clk 01:22:04]} {[%emt 00:02:42]} O-O {[%clk
01:15:38]} {[%emt 00:02:16]} 18. Ra5 {[%clk 01:03:26]} {[%emt 00:19:09]} Re8
{[%clk 01:13:32]} {[%emt 00:02:35]} 19. f3 {[%clk 01:02:19]} {[%emt 00:01:37]}
Nh5 {[%clk 01:07:17]} {[%emt 00:06:45]} 20. Rxc5 {[%clk 00:48:44]} {[%emt
00:14:05]} dxc5 {[%clk 01:07:20]} {[%emt 00:00:27]} 21. Ne2 {[%clk 00:47:19]}
{[%emt 00:01:54]} Bb5 {[%clk 01:02:57]} {[%emt 00:04:54]} 22. Kf2 {[%clk
00:41:56]} {[%emt 00:05:53]} Bd3 {[%clk 01:00:55]} {[%emt 00:02:32]} 23. Qd1
{[%clk 00:39:28]} {[%emt 00:02:58]} f5 {[%clk 00:59:12]} {[%emt 00:02:13]} 24.
e5 {[%clk 00:39:11]} {[%emt 00:00:47]} Re6 {[%clk 00:53:56]} {[%emt 00:05:46]}
25. g3 {[%clk 00:37:16]} {[%emt 00:02:26]} g5 {[%clk 00:46:58]} {[%emt
00:07:27]} 26. Nc4 {[%clk 00:31:53]} {[%emt 00:05:54]} g4 {[%clk 00:45:11]}
{[%emt 00:02:17]} 27. Nc1 {[%clk 00:30:53]} {[%emt 00:01:30]} Nf4 {[%clk
00:44:35]} {[%emt 00:01:05]} 28. Nxd3 {[%clk 00:23:02]} {[%emt 00:08:20]} Nxd3+
{[%clk 00:43:35]} {[%emt 00:01:30]} 29. Ke2 {[%clk 00:22:37]} {[%emt 00:00:55]}
gxf3+ {[%clk 00:43:19]} {[%emt 00:00:47]} 30. Ke3 {[%clk 00:22:51]} {[%emt
00:00:16]} f4+ {[%clk 00:40:14]} {[%emt 00:03:35]} 31. gxf4 {[%clk 00:23:10]}
{[%emt 00:00:10]} f2 {[%clk 00:34:06]} {[%emt 00:06:38]} 32. Qxd3 {[%clk
00:23:28]} {[%emt 00:00:13]} Qh4 {[%clk 00:34:06]} {[%emt 00:00:30]} 33. Qf5
{[%clk 00:21:31]} {[%emt 00:02:27]} Rg6 {[%clk 00:32:37]} {[%emt 00:01:59]} 34.
e6 {[%clk 00:21:25]} {[%emt 00:00:37]} Kf8 {[%clk 00:28:10]} {[%emt 00:04:25]}
35. Ke4+ {[%emt 00:00:03]} 1-0